Cogmind - Beta 14 @@@ ROGUE MODE // 2025.01.18 @ 00:05:37 Player: Adam_the_Great Result: Core destroyed Performance ------------- Evolutions (1) 500 Regions Visited (3) 600 Robots Destroyed (73) 365 Value Destroyed (1872) 1872 Prototype IDs (5) 100 Alien Tech Used (0) 0 Bonus (112) 112 TOTAL SCORE: 3549 Bonus ------- High Alert Combat Kills 112 Cogmind --------- Core Integrity 0/400 Matter 71/300 Energy 265/265 System Corruption 6% Temperature Critical (504) Movement Treading (160) Location -9/Storage Parts ------- > --- POWER (1) -------- Improved Ion Engine > --- PROPULSION (2) --- Light Treads Light Treads > --- UTILITY (3) ------ Medium Storage Unit Hardened Light Armor Plating Hardened Light Armor Plating > --- WEAPON (3) ------- Improved Light Cannon Improved Light Cannon > --- INVENTORY (10) --- Improved Ion Engine Light Treads Improved Light Cannon Rocket Launcher Peak State ------------ > --- POWER ------------ Light Nuclear Core > --- PROPULSION ------- Light Treads Light Treads > --- UTILITY ---------- Improved Heat Sink Small Storage Unit Light Armor Plating > --- WEAPON ----------- Improved Medium Laser Autogun Improved Assault Rifle > --- INVENTORY -------- Aluminum Leg Aluminum Leg Medium Storage Unit Hardened Light Armor Plating Spread Laser Heavy Assault Rifle Grenade Launcher Rocket Launcher [Rating: 19] Favorites ----------- Power Improved Ion Engine Engine Improved Ion Engine Power Core Light Nuclear Core Propulsion Light Treads Treads Light Treads Leg Aluminum Leg Utility Small Storage Unit Device Improved Heat Sink Storage Small Storage Unit Processor Signal Interpreter Protection Light Armor Plating Weapon Particle Cannon Energy Gun Beam Rifle Energy Cannon Particle Cannon Ballistic Gun Improved Assault Rifle Ballistic Cannon Improved Light Cannon Launcher Rocket Launcher Build | -11 -10 -9 -9 ------- Run | Yrd Mat Mat Sto Slots Evolved 2 | . . 2 . Power . | . . . . Propulsion . | . . . . Utility 1 | . . 1 . Weapon 1 | . . 1 . Parts Attached 68 | 8 3 21 36 Power 10 | 1 . 3 6 Engine 9 | 1 . 3 5 Core 1 | . . . 1 Reactor . | . . . . Propulsion 17 | 3 . 5 9 Treads 11 | 3 . . 8 Leg 6 | . . 5 1 Wheel . | . . . . Hover . | . . . . Flight . | . . . . Utility 12 | 1 1 4 6 Device 4 | . . 3 1 Storage 2 | 1 . . 1 Processor 2 | . 1 . 1 Hackware . | . . . . Protection 4 | . . 1 3 Artifact . | . . . . Weapon 29 | 3 2 9 15 Energy Gun 7 | 1 1 2 3 Energy Cannon 4 | . 1 3 . Ballistic Gun 9 | 2 . 3 4 Ballistic Cannon 7 | . . . 7 Launcher 2 | . . 1 1 Special Weapon . | . . . . Impact Weapon . | . . . . Slashing Weapon . | . . . . Piercing Weapon . | . . . . Special Melee Weapon . | . . . . Unidentified Prototypes 3 | . . 2 1 Parts Lost 13 | . . 4 9 Power 3 | . . 2 1 Propulsion 4 | . . 2 2 Utility 2 | . . . 2 Weapon 4 | . . . 4 Highest Loss Streak 2 | . . 2 2 To Critical Strikes . | . . . . Average Slot Usage (%) 93 | . 87 98 93 Engine 10 | . 14 10 7 Treads 14 | . 28 1 18 Leg 8 | . . 20 3 Device 11 | . . 18 13 Storage 11 | . 14 11 10 Processor 2 | . 4 1 2 Protection 2 | . . 1 5 Energy Gun 9 | . 9 9 10 Energy Cannon 6 | . 7 12 . Ballistic Gun 10 | . 8 9 14 Ballistic Cannon 2 | . . . 5 Peak Build Rating 19 | 6 8 18 19 Average Rating 13 | 4 7 14 15 On Entrance 8 | . 6 8 18 Naked Turns . | . . . . Heaviest Build 38 | 12 16 26 38 Greatest Support 40 | 40 40 40 40 Greatest Overweight (x) 7 | . . 2 7 Average Overweight (x) . | . . . . Largest Inventory Capacity 10 | 8 8 8 10 Average Capacity 8 | 7 8 8 8 Most Carried 10 | 5 8 8 10 Average Carried 6 | 3 7 6 6 Final Capacity 10 | 8 8 8 10 Final Carried 8 | 4 7 8 4 Class Distribution -------------------- 29% | Mutant 27% | Gunner 13% | Scavenger-Tank 9% | Scavenger-Gunner 7% | Scavenger-Skirmisher 6% | Scavenger-Mutant 3% | Skirmisher Dominant Class ---------------- Mutant | -10/Materials Gunner | -9/Materials Scavenger-Tank | -9/Storage Resources | -11 -10 -9 -9 ----------- Run | Yrd Mat Mat Sto Matter Collected 1520 | 237 129 450 704 Remotely . | . . . . Salvage Created 2386 | . 269 893 1224 Parts 157 | . 22 51 84 Haulers Intercepted 1 | . . . 1 Recyclers Shooed 2 | . . 1 1 Parts Field Recycled . | . . . . Retrieved Matter . | . . . . Parts Self-Destructed . | . . . . Prevented . | . . . . Kills | -11 -10 -9 -9 ------- Run | Yrd Mat Mat Sto Combat Hostiles Destroyed 61 | . 10 20 31 Guns 36 | . 7 5 24 Cannons 20 | . 3 12 5 AOE 5 | . . 3 2 Classes Destroyed 11 | . 2 5 4 Worker 2 | . . . 2 Builder 2 | . . . 2 Hauler 1 | . . . 1 Recycler 3 | . . 3 . Mechanic 1 | . . . 1 Operator 1 | . . 1 . Watcher 2 | . . 1 1 Swarmer 23 | . 6 8 9 Grunt 19 | . 4 7 8 Duelist 1 | . . 1 . Sentry 18 | . . 4 14 Best Kill Streak 5 | . 3 5 5 Combat Bots Only 5 | . 3 4 5 Max Kills in Single Turn 3 | . 1 2 3 Gunslinging 1 | . . . 1 Exploded 2 | . . 2 1 Melee . | . . . . Uniques/NPCs Destroyed . | . . . . Combat | -11 -10 -9 -9 -------- Run | Yrd Mat Mat Sto Hostile Shots Fired 370 | . 72 101 197 Missed 91 | . 19 24 48 Damage Taken 3442 | . 509 932 2001 Core 573 | . 151 210 212 Absorbed by Shields . | . . . . Regen/Repaired (Parts) 6 | . 6 . . Core Remaining (%) 69 | 100 39 . . Volleys Fired 164 | . 49 43 72 Largest 3 | . 2 3 3 Hottest 192 | . 118 192 134 Shots Fired 394 | . 89 117 188 Gun 278 | . 77 58 143 Cannon 110 | . 12 57 41 Launcher 6 | . . 2 4 Special . | . . . . Kinetic 211 | . 56 31 124 Thermal 177 | . 33 84 60 Explosive 6 | . . 2 4 Electromagnetic . | . . . . Robot Hit Streak 24 | . 6 15 24 Robot Miss Streak 6 | . 5 6 5 Penetration Max . | . . . . Secondary Targets 3 | . 1 . 2 Max Gunslinging Chain 1 | . 1 . 1 Shots Hit Robots 243 | . 49 68 126 Core Hits 127 | . 20 35 72 Critical Kills 1 | . . . 1 Critical Parts Destroyed . | . . . . Critical Strikes 3 | . 1 . 2 Burn 2 | . 1 . 1 Destroy 1 | . . . 1 Melee Attacks . | . . . . Impact . | . . . . Slashing . | . . . . Piercing . | . . . . Sneak Attacks . | . . . . Combat Hostiles . | . . . . Follow-up Attacks . | . . . . Damage Inflicted 4456 | . 571 1478 2407 Guns 2551 | . 407 463 1681 Cannons 1317 | . 164 717 436 Explosions 577 | . . 287 290 Melee . | . . . . Ramming 11 | . . 11 . Kinetic 1812 | . 232 249 1331 Thermal 2056 | . 339 931 786 Explosive 577 | . . 287 290 Electromagnetic . | . . . . Impact . | . . . . Slashing . | . . . . Piercing . | . . . . Highest Corruption 6 | . . . 6 Average Corruption 5 | . . . 5 Corruption Purged . | . . . . Corruption Blocked . | . . . . Effects 27 | . . . 27 Message Errors 6 | . . . 6 Matter Fused 5 | . . . 5 Heat Flow Errors 1 | . . . 1 Energy Discharges 3 | . . . 3 Parts Rejected 3 | . . . 3 Data Loss (minor) 2 | . . . 2 Data Loss (major) 4 | . . . 4 Misfires 1 | . . . 1 Weapon Failures 2 | . . . 2 Overload Shots . | . . . . Overflow Damage 45 | . . 45 . Projectiles 17 | . . 17 . Explosions 28 | . . 28 . Melee . | . . . . Knockbacks 2 | . . . 2 Impact . | . . . . Kinetic 2 | . . . 2 Secondary . | . . . . Self-Inflicted Damage 44 | . . 10 34 Shots 2 | . . 1 1 Rammed . | . . . . Targets Rammed 2 | . . 2 . Kicked 2 | . . 2 . Crushed . | . . . . Highest Temperature 662 | . 398 662 555 Average Temperature 159 | . 106 249 131 Received Heat Transfer 906 | . 84 186 636 Effects 41 | . 2 21 18 Shutdowns 8 | . 1 4 3 Energy Bleed 8 | . 1 4 3 Interference 9 | . . 4 5 Matter Decay 7 | . . 3 4 Short Circuit 2 | . . 2 . Damage (minor) 4 | . . 2 2 Damage (major) 1 | . . 1 . Damage (core) 2 | . . 1 1 Siege Activations . | . . . . Robots Corrupted . | . . . . Combat Hostiles . | . . . . Parts Fried . | . . . . Impact Corruptions . | . . . . Robots Melted . | . . . . Combat Hostiles . | . . . . Parts Melted 4 | . . 1 3 Heat Transferred 4297 | . 888 1716 1693 Parts Sabotaged . | . . . . Parts Stolen . | . . . . Parts Stripped . | . . . . Power Chain Reactions . | . . . . Alert | -11 -10 -9 -9 ------- Run | Yrd Mat Mat Sto Peak Influence 651 | . 156 321 651 Initial 50 | . . 8 50 Average 179 | . 50 133 319 Maximum Alert Level 2 | . . 1 2 Low Security (%) 69 | 100 100 87 28 Level 1 17 | . . 12 34 Level 2 13 | . . . 36 Level 3 . | . . . . Level 4 . | . . . . Level 5 . | . . . . High Security . | . . . . Max Security . | . . . . Squads Dispatched 11 | . 1 3 7 Investigation 4 | . 1 2 1 Extermination . | . . . . Reinforcement 2 | . . 1 1 Assault 1 | . . . 1 Garrison 4 | . . . 4 Intercept . | . . . . Searches Triggered . | . . . . Construction Impeded . | . . . . Haulers Reinforced . | . . . . Active Scanning Responses . | . . . . Cargo Convoy Interrupts . | . . . . Stealth | -11 -10 -9 -9 --------- Run | Yrd Mat Mat Sto Distress Signals 7 | . 1 2 4 Communications Jammed . | . . . . Distress Signals . | . . . . Times Spotted 97 | . 19 32 46 Peak Tracking Total 7 | . 3 5 7 Tactical Retreats 7 | . 1 2 4 Traps | -11 -10 -9 -9 ------- Run | Yrd Mat Mat Sto Traps Triggered 12 | . 1 1 10 Indirectly . | . . . . Trap Hack Attempts . | . . . . Triggered . | . . . . Disarmed . | . . . . Reprogrammed . | . . . . Reused . | . . . . Traps Extracted . | . . . . Installed . | . . . . Triggered . | . . . . Machines | -11 -10 -9 -9 ---------- Run | Yrd Mat Mat Sto Machines Disabled 2 | . . . 2 Max in Single Turn 1 | . . . 1 Machines Repaired . | . . . . Machines Dismantled . | . . . . Machines Sabotaged . | . . . . Overloaded Fab Kills . | . . . . Hacking | -11 -10 -9 -9 --------- Run | Yrd Mat Mat Sto Machines Accessed 24 | . 7 7 10 Terminals 19 | . 6 5 8 Fabricators . | . . . . Repair Stations 2 | . 1 1 . Recycling Units 3 | . . 1 2 Scanalyzers . | . . . . Garrison Access . | . . . . Total Hacks 69 | . 19 23 27 Successful 38 | . 9 12 17 Failed 29 | . 10 11 8 Catastrophic 4 | . 1 1 2 Database Lockouts 2 | . . . 2 Manual 10 | . 1 1 8 Terminals 58 | . 15 18 25 Fabricators . | . . . . Repair Stations 6 | . 4 2 . Recycling Units 5 | . . 3 2 Scanalyzers . | . . . . Garrison Access . | . . . . Terminal Hacks 31 | . 7 9 15 Record 20 | . 3 8 9 Prototype ID Bank 1 | . . . 1 Open Door 2 | . . . 2 Branch Access Points 1 | . . . 1 Emergency Access Points 2 | . 1 1 . Alert Level 4 | . 3 . 1 Maintenance Status 1 | . . . 1 Fabricator Hacks . | . . . . Repair Station Hacks 3 | . 2 1 . Scan Component 2 | . 1 1 . Repair 1 | . 1 . . Recycling Unit Hacks 4 | . . 2 2 Process 2 | . . 1 1 Report Inventory 2 | . . 1 1 Scanalyzer . | . . . . Garrison Access Hacks . | . . . . Unauthorized Hacks . | . . . . Terminals . | . . . . Fabricators . | . . . . Repair Stations . | . . . . Recycling Units . | . . . . Scanalyzers . | . . . . Garrison Access . | . . . . Data Cores Recovered 1 | . . 1 . Used 1 | . . 1 . Hacking Detections 19 | . 7 6 6 Full Trace Events 4 | . 1 2 1 Feedback Events . | . . . . Feedback Blocked . | . . . . Robot Schematics Acquired . | . . . . Robots Built . | . . . . Authchips . | . . . . Time . | . . . . Total Robot Build Rating . | . . . . Part Schematics Acquired . | . . . . Parts Built . | . . . . Authchips . | . . . . Time . | . . . . Total Part Build Rating . | . . . . Parts Repaired 1 | . 1 . . Time 26 | . 26 . . Parts Recycled . | . . . . Recycled Matter 343 | . . 203 140 Retrieved Matter . | . . . . Retrieved Components . | . . . . Parts Scanalyzed . | . . . . Part Schematics Acquired . | . . . . Parts Damaged . | . . . . Bothacking | -11 -10 -9 -9 ------------ Run | Yrd Mat Mat Sto Used RIF Installer . | . . . . Robots Hacked . | . . . . Non-combat . | . . . . Combat . | . . . . Robot Hacks Applied . | . . . . Relay Couplers Released . | . . . . Fabnet Peak Effective % . | . . . . Robots Rewired . | . . . . Allies Hacked . | . . . . Hacks Repelled . | . . . . Allies | -11 -10 -9 -9 -------- Run | Yrd Mat Mat Sto Total Allies . | . . . . Largest Group . | . . . . Highest-Rated Group . | . . . . Highest-Rated Ally . | . . . . Total Orders . | . . . . Ally Attacks . | . . . . Total Damage . | . . . . Kills . | . . . . Allies Corrupted . | . . . . Allies Melted . | . . . . Intel | -11 -10 -9 -9 ------- Run | Yrd Mat Mat Sto Robot Analysis Total . | . . . . Derelict Logs Recovered . | . . . . Drone Launches . | . . . . Drone Recoveries . | . . . . Exploration | -11 -10 -9 -9 ------------- Run | Yrd Mat Mat Sto Turns Passed 4746 | 72 1169 1745 1760 Spaces Moved 2062 | 41 621 729 671 Core 11 | 10 . . 1 Treads 1275 | 31 621 40 583 Legs 776 | . . 689 87 Wheels . | . . . . Hover . | . . . . Flight . | . . . . Fastest Speed 50 | 50 160 120 160 Average Speed 171 | 133 160 188 166 Slowest Speed 400 | 160 160 260 400 Overloaded Moves . | . . . . Propulsion Burnouts . | . . . . Robots Hopped . | . . . . Cave-ins Triggered . | . . . . Exploration Rate (%) 55 | 3 91 44 84 Regions Visited 3 Branch Regions 1 Pre-discovered Areas . | . . . . Known Exits Taken 1 | . 1 . . Unknown Exits Taken 2 | 1 . 1 . Scrap Searched . | . . . . Spaces Dug 8 | . . 8 . Terrain Destroyed 58 | . . 21 37 Melee . | . . . . Projectile 2 | . . . 2 AOE 56 | . . 21 35 Terrain Rammed . | . . . . Walls Destroyed . | . . . . Machines Disabled . | . . . . Actions | -11 -10 -9 -9 --------- Run | Yrd Mat Mat Sto Total 2966 | 60 720 1018 1168 Wait 552 | . 37 177 338 Move 2059 | 40 620 728 671 Hop . | . . . . Pick Up 82 | 10 8 28 36 Fast Attach 1 | . . . 1 Attach 42 | 8 2 10 22 Detach 2 | 2 . . . Swap 26 | . 1 12 13 Drop 36 | . 3 18 15 Fire 164 | . 49 43 72 Melee . | . . . . Ram . | . . . . Kick 2 | . . 2 . Crush . | . . . . Escape Stasis . | . . . . Rewire . | . . . . Trap . | . . . . Miscellaneous . | . . . . Route ------- -11/Scrapyard -10/Materials (discovered 4 exits: *Mat x3 / [*Min]) -9/Materials (discovered 2 exits: *Sto x2) -9/Storage (discovered 1 exit: Rec) History --------- Turn | Location | Event 7 | -11/Scrapyard | Discovered new exit (range 16) 73 | -11/Scrapyard | Entered Materials 247 | -10/Materials | Discovered new exit (range 16) 292 | -10/Materials | Repaired Lgt. Assault Rifle? 302 | -10/Materials | Build established: Mutant 475 | -10/Materials | Discovered new exit (range 16) 603 | -10/Materials | Core integrity fell below 50% 658 | -10/Materials | Discovered new exit (range 15) 1145 | -10/Materials | Discovered new exit (range 11) 1241 | -10/Materials | Identified exit to Materials 1242 | -10/Materials | Entered another Materials area 1242 | -9/Materials | Evolved 2 slots: Utility x1, Weapon x1 2083 | -9/Materials | Build established: Scavenger-Gunner 2561 | -9/Materials | Build established: Gunner 2563 | -9/Materials | Discovered new exit (range 14) 2883 | -9/Materials | Core integrity fell below 50% 2924 | -9/Materials | Discovered new exit (range 4) 2987 | -9/Materials | Entered Storage 3446 | -9/Storage | Garrison activated, responded to threat 3555 | -9/Storage | Build established: Scavenger-Tank 3830 | -9/Storage | Garrison activated, responded to threat 3912 | -9/Storage | Central database locked down 3912 | -9/Storage | Central database locked down 4216 | -9/Storage | Identified exit to Recycling 4240 | -9/Storage | Core integrity fell below 20% 4587 | -9/Storage | First assault squad dispatched 4748 | -9/Storage | Core destroyed Last Messages --------------- 04710_ Power failure, Imp. Ion Engine shutdown. 04710_ Overheating: Matter decay (-31). 04711_ Acquired Lgt. Treads. 04714_ Imp. Light Cannon destroyed. 04714_ Critical hit (Burn: +37). 04714_ K-01 Serf collects debris. 04714_ Acquired Lgt. Treads. 04720_ K-01 Serf cleans the Compression Vault. 04724_ Overheating: Energy bleed (-46). 04725_ I-25 Savior knocked back. 04726_ MHNOB4 WJD CIBGZ:CRK|8Q/ 04726_ Acquired 5 matter. 04728_ K-01 Serf cleans the Compression Vault. 04737_ Overheating: Energy bleed (-42). 04737_ Y-45 Defender destroyed. 04740_ Overheating: System interference. 04740_ Imp. Light Cannon temporarily disabled. 04747_ Overheating: System interference. 04747_ Imp. Light Cannon temporarily disabled. 04748_ Overheating: Core damaged (-56). Map ----- +----------------------------------------------------+ | #??# """" # # """" " #????? | | ?#??# """" # # #????? | | ????# """" + + #????? | | ????# # ##+########????? | | ????########### #???????????? | | ????????####### ^ #???????????? | | ????????# # #???????????? | | ????????# ! |# #???????????? | | ????????# # #???????????? | | ????????# [ /% #???????????? | | ????????# # #???????????? | | ######### # #?##+##?????? | | """ """ # # ### #?????? | | """ """ # # %* ! #?????? | | """ """ ###+####+####### #?????? | | ### ##? ??????## ##?????? | | # # ???????#=####???? | | + # ""???????# =%##??? | | # + ""???????####!"#??? | | # # ????????????# #???? | | ########## ##?????????????#*#???? | | # #??????????????#!#???? | | " #??????????????# #???? | | # #?????????????## ##??? | | # #????##########[ #??? | | # i @%% #??? | | # % ##[%%%#??? | | # """ """????#####??? | | # """ "?????????????? | | ########## """ ???????????????? | | ?????????# ????????????????? | | ?????????# ????????????????? | | ?????????########????????????????? | | ?????????????????????????????????? | | ?????????????????????????????????? | | ?????????????????????????????????? | | ?????????????????????????????????? | | ?????????????????????????????????? | | ?????????????????????????????????? | | ?????????????????????????????????? | | ?????????????????????????????????? | | ?????????????????????????????????? | | ??????????????????????>??????????? | | ?????????????????????????????????? | | ?????????????????????????????????? | | ?????????????????????????????????? | | ?????????????????????????????????? | | ?????????????????????????????????? | | ?????????????????????????????????? | | ?????????????????????????????????? | +----------------------------------------------------+ Best States ------------- Heat Dissipation 64 Energy Generation 14 Energy Capacity 265 Matter Stores 300 Matter Capacity 300 Sight Range 16 Robot Scan Range 14 Terrain Scan Density 10 Armor Coverage 300 Evasion (%) 50 Recoil Reduction 2 Item Schematics ----------------- None Robot Schematics ------------------ None Fabricated ------------ Nothing Alien Tech Used ----------------- None Achievements -------------- None Challenges ------------ None Game ------ Seed JunkMetafiberNanosword Manual? 0 Play Time 00:49:33 Cumulative 16.0 hours Start 2025.01.17 @ 23:14:24 End 2025.01.18 @ 00:05:37 Sessions 1 Manual Loads 0 Difficulty Rogue Special Mode None Game No. 23 Rogue 23 Adventurer 0 Explorer 0 Win Type - Total 0 Types 0/0/0/0/0/0/0/0/0 Lore% 14 Gallery% 18 Achievement% 16 Wizard Run 0 Options --------- Layout 0 ASCII 0 Keyboard 0 Movement Mouse Keybinds 0 Fullscreen 1 Font 24/Smallcaps Map View 76x50 Zoom Use 0% Tactical HUD 1 Map Filters NONE Filters NONE Steam 1 RUN: 5f102ada-7099-4699-a9b3-69a12a1b0025